fUST/lending_fUST_20250604
["ID","MTS","AMOUNT","RATE_DAILY","PERIOD"]
[364082595,1748992240610,-501.41,0.00017808,2]
[364082596,1748992240620,-440.0,0.00017808,2]
[364082597,1748992240629,-440.0,0.00017808,2]
[364082598,1748992240639,-293.22,0.00017808,2]
[364082599,1748992240648,-247.49,0.00017808,2]
[364082600,1748992240657,-604.96,0.00017808,2]
[364082601,1748992240667,-589.2,0.00017808,2]
[364082602,1748992240678,-440.0,0.00017808,2]
[364082603,1748992240687,-391.53,0.00017808,2]
[364082604,1748992240696,-626.37,0.00017808,2]
[364082605,1748992240706,-440.0,0.00017808,2]
[364082606,1748992240715,-187.19561744,0.00017808,2]
[364082607,1748992240729,-420.0,0.00017813,2]
[364082608,1748992240738,-300.0,0.00017813,2]
[364082609,1748992240748,-196.0,0.00017813,2]
[364082610,1748992240759,-165.0,0.00017813,2]
[364082611,1748992240768,-403.0,0.00017814,2]
[364082612,1748992240777,-1680.0,0.00017901,2]
[364082613,1748992240786,-2003.92702957,0.00018003,2]
[364082614,1748992240795,-440.0,0.00018082,2]
[364082615,1748992240806,-440.0,0.00018082,2]
[364082616,1748992240816,-440.0,0.00018082,2]
[364082617,1748992240825,-536.58,0.00018082,2]
[364082619,1748992240834,-380.0,0.00018082,2]
[364082621,1748992240843,-440.0,0.00018082,2]
[364082623,1748992240852,-156.88,0.00018082,2]
[364082625,1748992240861,-440.0,0.00018082,2]
[364082627,1748992240871,-383.8,0.00018082,2]
[364082629,1748992240880,-501.41,0.00018082,2]
[364082631,1748992240890,-440.0,0.00018082,2]
[364082634,1748992240900,-440.0,0.00018082,2]
[364082636,1748992240909,-604.96,0.00018082,2]
[364082638,1748992240918,-589.2,0.00018082,2]
[364082640,1748992240928,-440.0,0.00018082,2]
[364082642,1748992240937,-626.37,0.00018082,2]
[364082644,1748992240946,-440.0,0.00018082,2]
[364082646,1748992240956,-2003.92702957,0.00018279,2]
[364082648,1748992240966,-440.0,0.00018356,2]
[364082650,1748992240977,-440.0,0.00018356,2]
[364082652,1748992240987,-440.0,0.00018356,2]
[364082654,1748992240997,-381.37,0.00018356,2]
[364082656,1748992241006,-536.58,0.00018356,2]
[364082658,1748992241015,-440.0,0.00018356,2]
[364082660,1748992241025,-501.41,0.00018356,2]
[364082662,1748992241035,-332.55,0.00018356,2]
[364082664,1748992241045,-440.0,0.00018356,2]
[364082666,1748992241054,-604.96,0.00018356,2]
[364082668,1748992241064,-589.2,0.00018356,2]
[364082670,1748992241074,-440.0,0.00018356,2]
[364082672,1748992241084,-626.37,0.00018356,2]
[364082674,1748992241093,-440.0,0.00018356,2]
[364082676,1748992241102,-292.87985933,0.00018394,2]
[364082678,1748992241116,-1810.64038811,0.00018555,2]
[364082704,1748992241362,-270.13541551,0.00016438,2]
[364082707,1748992241374,-169.86458449,0.00016438,2]
[364082709,1748992241383,-440.0,0.00016438,2]
[364082710,1748992241392,-440.0,0.00016438,2]
[364082713,1748992241402,-440.0,0.00016712,2]
[364082714,1748992241411,-410.0,0.00016986,2]
[364082716,1748992241421,-193.28664146,0.00018555,2]
[364082718,1748992241430,-565.09,0.0001863,2]
[364082720,1748992241439,-440.0,0.0001863,2]
[364082722,1748992241449,-440.0,0.0001863,2]
[364082724,1748992241459,-536.58,0.0001863,2]
[364082726,1748992241468,-408.38,0.0001863,2]
[364082729,1748992241479,-501.41,0.0001863,2]
[364082730,1748992241489,-440.0,0.0001863,2]
[364082733,1748992241500,-604.96,0.0001863,2]
[364082735,1748992241510,-589.2,0.0001863,2]
[364082737,1748992241520,-440.0,0.0001863,2]
[364082738,1748992241530,-626.37,0.0001863,2]
[364082740,1748992241539,-440.0,0.0001863,2]
[364082742,1748992241549,-22.46852212,0.00018631,2]
[364082745,1748992241561,-137.53147788,0.00018631,2]
[364082747,1748992241571,-471.52652212,0.00018631,2]
[364082749,1748992241583,-12199.23484381,0.00018631,2]
[364082751,1748992241593,-423.63107087,0.00018631,2]
[364082753,1748992241603,-160.0,0.00018631,2]
[364082755,1748992241612,-212.86879254,0.00018631,2]
[364082757,1748992241622,-229.42821335,0.00018631,2]
[364082759,1748992241632,-2111.20273033,0.00018678,2]
[364082761,1748992241641,-2003.92702957,0.00018831,2]
[364082763,1748992241651,-440.0,0.00018904,2]
[364082765,1748992241660,-440.0,0.00018904,2]
[364082767,1748992241669,-536.58,0.00018904,2]
[364082769,1748992241678,-501.41,0.00018904,2]
[364082771,1748992241688,-440.0,0.00018904,2]
[364082773,1748992241697,-604.96,0.00018904,2]
[364082774,1748992241706,-589.2,0.00018904,2]
[364082776,1748992241716,-440.0,0.00018904,2]
[364082778,1748992241728,-626.37,0.00018904,2]
[364082780,1748992241738,-440.0,0.00018904,2]
[364082782,1748992241747,-2003.92702957,0.00019107,2]
[364082784,1748992241757,-395.64359466,0.00019178,2]
[364082786,1748992241766,-440.0,0.00019178,2]
[364082788,1748992241776,-440.0,0.00019178,2]
[364082790,1748992241786,-536.58,0.00019178,2]
[364082792,1748992241795,-501.41,0.00019178,2]
[364082794,1748992241806,-290.44811474,0.00019178,2]
[364082796,1748992241816,-604.96,0.00019178,2]
[364082798,1748992241825,-589.2,0.00019178,2]
[364082800,1748992241835,-440.0,0.00019178,2]
[364082802,1748992241845,-626.37,0.00019178,2]
[364082804,1748992241856,-440.0,0.00019178,2]
[364082806,1748992241866,-2003.92702957,0.00019383,2]
[364082808,1748992241875,-440.0,0.00019452,2]
[364082810,1748992241885,-440.0,0.00019452,2]
[364082812,1748992241896,-536.58,0.00019452,2]
[364082815,1748992241906,-501.41,0.00019452,2]
[364082817,1748992241915,-604.96,0.00019452,2]
[364082819,1748992241925,-589.2,0.00019452,2]
[364082821,1748992241935,-440.0,0.00019452,2]
[364082823,1748992241944,-626.37,0.00019452,2]
[364082825,1748992241954,-440.0,0.00019452,2]
[364082827,1748992241963,-587.0,0.00019469,2]
[364082839,1748992242077,-2003.92702957,0.00019659,2]
[364082842,1748992242087,-440.0,0.00019726,2]
[364082844,1748992242097,-440.0,0.00019726,2]
[364082845,1748992242108,-536.58,0.00019726,2]
[364082848,1748992242118,-501.41,0.00019726,2]
[364082849,1748992242128,-604.96,0.00019726,2]
[364082851,1748992242137,-589.2,0.00019726,2]
[364082853,1748992242147,-440.0,0.00019726,2]
[364082856,1748992242157,-626.37,0.00019726,2]
[364082858,1748992242167,-440.0,0.00019726,2]
[364082860,1748992242176,-2003.92702957,0.00019934,2]
[364082861,1748992242187,-884.416712,0.00019966,2]
[364082863,1748992242198,-24900.0,0.00019966,2]
[364082866,1748992242208,-181.684091,0.00019966,2]
[364082868,1748992242218,-242.99262108,0.0002,2]
[364082870,1748992242227,-440.0,0.0002,2]
[364082872,1748992242238,-440.0,0.0002,2]
[364082874,1748992242248,-536.58,0.0002,2]
[364082876,1748992242258,-501.41,0.0002,2]
[364082878,1748992242267,-604.96,0.0002,2]
[364082880,1748992242277,-589.2,0.0002,2]
[364082882,1748992242287,-440.0,0.0002,2]
[364082884,1748992242297,-626.37,0.0002,2]
[364082886,1748992242307,-440.0,0.0002,2]
[364082888,1748992242317,-273.048721,0.00020187,2]
[364082890,1748992242326,-2003.92702957,0.0002021,2]
[364082892,1748992242335,-440.0,0.00020273,2]
[364082894,1748992242344,-469.93,0.00020273,2]
[364082896,1748992242354,-536.58,0.00020273,2]
[364082898,1748992242364,-501.41,0.00020273,2]
[364082900,1748992242373,-604.96,0.00020273,2]
[364082902,1748992242383,-589.2,0.00020273,2]
[364082903,1748992242392,-440.0,0.00020273,2]
[364082905,1748992242401,-626.37,0.00020273,2]
[364082907,1748992242411,-440.0,0.00020273,2]
[364082909,1748992242420,-800.0,0.00020319,2]
[364082911,1748992242430,-2111.20273033,0.00020471,2]
[364082913,1748992242440,-2003.92702957,0.00020486,3]
[364082915,1748992242449,-282.17,0.00020547,2]
[364082917,1748992242459,-536.58,0.00020547,2]
[364082919,1748992242468,-500.0,0.00020547,2]
[364082921,1748992242478,-501.41,0.00020547,2]
[364082923,1748992242487,-604.96,0.00020547,2]
[364082925,1748992242496,-589.2,0.00020547,2]
[364082927,1748992242506,-242.64,0.00020547,2]
[364082929,1748992242516,-626.37,0.00020547,2]
[364082931,1748992242525,-440.0,0.00020547,2]
[364082933,1748992242534,-979.92,0.000206,2]
[364082935,1748992242544,-2417.84,0.000206,2]
[364082937,1748992242553,-2003.92702957,0.00020762,3]
[364082939,1748992242562,-536.58,0.00020821,2]
[364082941,1748992242572,-501.41,0.00020821,2]
[364082943,1748992242582,-604.96,0.00020821,2]
[364082945,1748992242591,-589.2,0.00020821,2]
[364082947,1748992242601,-626.37,0.00020821,2]
[364082949,1748992242610,-440.0,0.00020821,2]
[364082951,1748992242619,-3000.0,0.00021,2]
[364082953,1748992242629,-3000.0,0.0002101,2]
[364082955,1748992242638,-3000.0,0.0002102,2]
[364082957,1748992242648,-3000.0,0.0002103,2]
[364082959,1748992242658,-2003.92702957,0.00021038,4]
[364082961,1748992242668,-3000.0,0.0002104,2]
[364082963,1748992242677,-3000.0,0.0002105,2]
[364082965,1748992242688,-3000.0,0.0002106,2]
[364082967,1748992242698,-3000.0,0.0002107,2]
[364082969,1748992242707,-3000.0,0.0002108,2]
[364082971,1748992242717,-5914.185436,0.0002109,2]
[364082973,1748992242731,-536.58,0.00021095,2]
[364082975,1748992242741,-500.0,0.00021095,3]
[364082977,1748992242751,-501.41,0.00021095,2]
[364082979,1748992242760,-604.96,0.00021095,2]
[364082981,1748992242770,-589.2,0.00021095,2]
[364082983,1748992242779,-626.37,0.00021095,2]
[364082985,1748992242789,-440.0,0.00021095,2]
[364082987,1748992242799,-5000.0,0.00021133,2]
[364082989,1748992242809,-2003.92702957,0.00021314,5]
[364082991,1748992242819,-536.58,0.00021369,2]
[364082993,1748992242828,-501.41,0.00021369,2]
[364082995,1748992242838,-604.96,0.00021369,2]
[364082997,1748992242848,-589.2,0.00021369,2]
[364082999,1748992242857,-626.37,0.00021369,2]
[364083001,1748992242867,-356.57,0.00021369,2]
[364083003,1748992242876,-2003.92702957,0.0002159,5]
[364083005,1748992242887,-353.62005715,0.00021638,2]
[364083007,1748992242897,-503.74229724,0.00021638,2]
[364083009,1748992242906,-536.58,0.00021643,2]
[364083011,1748992242916,-501.41,0.00021643,2]
[364083013,1748992242926,-604.96,0.00021643,2]
[364083015,1748992242936,-589.2,0.00021643,2]
[364083017,1748992242946,-626.37,0.00021643,2]
[364083020,1748992242956,-500.0,0.00021644,2]
[364083021,1748992242967,-501.59296241,0.00021644,2]
[364083023,1748992242977,-181.76766452,0.00021644,2]
[364083026,1748992242986,-501.15522276,0.00021644,2]
[364083028,1748992242996,-500.48097815,0.00021644,2]
[364083030,1748992243006,-500.0,0.00021644,2]
[364083033,1748992243016,-500.0,0.00021644,2]
[364083034,1748992243035,-500.0,0.00021644,2]
[364083036,1748992243045,-2003.92702957,0.00021866,6]
[364083038,1748992243056,-8112.92177804,0.00021917,2]
[364083040,1748992243065,-536.58,0.00021917,2]
[364083042,1748992243074,-501.41,0.00021917,2]
[364083044,1748992243084,-604.96,0.00021917,2]
[364083046,1748992243095,-589.2,0.00021917,2]
[364083048,1748992243105,-626.37,0.00021917,2]
[364083050,1748992243115,-3308.10900124,0.00021918,2]
[364083052,1748992243124,-500.0,0.00021973,2]
[364083056,1748992243135,-500.0,0.00021999,2]
[364083060,1748992243145,-500.0,0.00021999,2]
[364083063,1748992243155,-500.0,0.00021999,2]
[364083066,1748992243166,-500.0,0.00021999,2]
[364083068,1748992243175,-500.0,0.00021999,2]
[364083070,1748992243185,-500.0,0.00021999,2]
[364083072,1748992243194,-500.0,0.00021999,2]
[364083074,1748992243203,-500.0,0.00021999,2]
[364083075,1748992243213,-500.0,0.00021999,2]
[364083077,1748992243222,-500.0,0.00021999,2]
[364083079,1748992243232,-500.0,0.00021999,2]
[364083081,1748992243241,-500.0,0.00021999,2]
[364083083,1748992243251,-500.0,0.00021999,2]
[364083087,1748992243261,-500.0,0.00021999,2]
[364083088,1748992243270,-500.0,0.00021999,2]
[364083090,1748992243280,-500.0,0.00021999,2]
[364083092,1748992243290,-500.0,0.00021999,2]
[364083094,1748992243300,-500.0,0.00021999,2]
[364083096,1748992243310,-500.0,0.00021999,2]
[364083098,1748992243319,-500.0,0.00021999,2]
[364083100,1748992243329,-500.0,0.00021999,2]
[364083101,1748992243339,-500.0,0.00021999,2]
[364083102,1748992243349,-500.0,0.00021999,2]
[364083103,1748992243358,-500.0,0.00021999,2]
[364083104,1748992243368,-353.83890274,0.00021999,2]
[364083105,1748992243377,-500.0,0.00021999,2]
[364083106,1748992243387,-500.0,0.00021999,2]
[364083107,1748992243397,-500.0,0.00021999,2]
[364083108,1748992243406,-500.0,0.00021999,2]
[364083109,1748992243415,-500.0,0.00021999,2]
[364083111,1748992243426,-500.0,0.00021999,2]
[364083113,1748992243435,-500.0,0.00021999,2]
[364083115,1748992243444,-500.0,0.00021999,2]
[364083117,1748992243453,-500.0,0.00021999,2]
[364083119,1748992243462,-500.0,0.00021999,2]
[364083121,1748992243472,-500.0,0.00021999,2]
[364083123,1748992243481,-500.0,0.00021999,2]
[364083125,1748992243491,-500.0,0.00021999,2]
[364083127,1748992243500,-500.0,0.00021999,2]
[364083129,1748992243509,-500.0,0.00021999,2]
[364083131,1748992243518,-450.0,0.00021999,2]
[364083133,1748992243528,-500.0,0.00021999,2]
[364083135,1748992243537,-409.02410236,0.00021999,2]
[364083137,1748992243546,-500.0,0.00021999,2]
[364083139,1748992243555,-500.0,0.00021999,2]
[364083141,1748992243564,-211.87660772,0.00021999,2]
[364083143,1748992243574,-500.0,0.00021999,2]
[364083145,1748992243583,-500.0,0.00021999,2]
[364083147,1748992243593,-500.0,0.00021999,2]
[364083149,1748992243603,-500.0,0.00021999,2]
[364083151,1748992243612,-376.02126873,0.00021999,2]
[364083153,1748992243621,-500.0,0.00021999,2]
[364083155,1748992243631,-500.0,0.00021999,2]
[364083157,1748992243639,-500.0,0.00021999,2]
[364083159,1748992243649,-500.0,0.00021999,2]
[364083161,1748992243659,-500.0,0.00021999,2]
[364083164,1748992243668,-500.0,0.00021999,2]
[364083166,1748992243677,-500.0,0.00021999,2]
[364083168,1748992243687,-500.0,0.00021999,2]
[364083170,1748992243697,-500.0,0.00021999,2]
[364083172,1748992243708,-500.0,0.00021999,2]
[364083174,1748992243718,-500.0,0.00021999,2]
[364083176,1748992243732,-500.0,0.00021999,2]
[364083178,1748992243741,-500.0,0.00021999,2]
[364083180,1748992243751,-500.0,0.00021999,2]
[364083182,1748992243760,-534.18237885,0.00021999,2]
[364083184,1748992243771,-500.0,0.00021999,2]
[364083186,1748992243781,-500.0,0.00021999,2]
[364083188,1748992243790,-500.0,0.00021999,2]
[364083190,1748992243802,-500.0,0.00021999,2]
[364083192,1748992243812,-500.0,0.00021999,2]
[364083194,1748992243821,-500.0,0.00021999,2]
[364083196,1748992243831,-500.0,0.00021999,2]
[364083198,1748992243841,-500.0,0.00021999,2]
[364083200,1748992243850,-500.0,0.00021999,2]
[364083202,1748992243860,-500.0,0.00021999,2]
[364083204,1748992243869,-500.0,0.00021999,2]
[364083206,1748992243880,-500.0,0.00021999,2]
[364083208,1748992243891,-500.0,0.00021999,2]
[364083210,1748992243900,-500.0,0.00021999,2]
[364083212,1748992243910,-500.0,0.00021999,2]
[364083214,1748992243919,-500.0,0.00021999,2]
[364083216,1748992243929,-500.0,0.00021999,2]
[364083218,1748992243938,-392.60563126,0.00021999,2]
[364083220,1748992243948,-500.0,0.00021999,2]
[364083222,1748992243958,-500.0,0.00021999,2]
[364083225,1748992243967,-535.56758073,0.00021999,2]
[364083226,1748992243977,-500.0,0.00021999,2]
[364083228,1748992243987,-408.08347866,0.00021999,2]
[364083230,1748992243998,-500.0,0.00021999,2]
[364083232,1748992244009,-400.08981541,0.00021999,2]
[364083235,1748992244019,-500.0,0.00021999,2]
[364083237,1748992244029,-500.0,0.00021999,2]
[364083239,1748992244041,-500.0,0.00021999,2]
[364083241,1748992244052,-500.0,0.00021999,2]
[364083243,1748992244063,-500.0,0.00021999,2]
[364083245,1748992244072,-582.65372841,0.00021999,2]
[364083247,1748992244082,-161889.19,0.00022,7]
[364083249,1748992244095,-2417.84,0.00022,7]
[364083251,1748992244106,-212.86879254,0.00022,7]
[364083253,1748992244116,-171.0,0.00022,2]
[364083255,1748992244125,-2003.92702957,0.00022141,6]
[364083257,1748992244135,-536.58,0.00022191,2]
[364083259,1748992244145,-501.41,0.00022191,2]
[364083261,1748992244154,-604.96,0.00022191,2]
[364083263,1748992244164,-589.2,0.00022191,2]
[364083265,1748992244173,-626.37,0.00022191,2]
[364083267,1748992244183,-500.0,0.00022192,2]
[364083269,1748992244194,-2111.20273033,0.00022263,2]
[364083271,1748992244203,-2003.92702957,0.00022417,7]
[364083273,1748992244213,-536.58,0.00022465,2]
[364083275,1748992244223,-501.41,0.00022465,2]
[364083277,1748992244232,-604.96,0.00022465,2]
[364083279,1748992244242,-589.2,0.00022465,2]
[364083281,1748992244251,-626.37,0.00022465,2]
[364083283,1748992244261,-800.0,0.00022511,2]
[364083285,1748992244271,-155.59630994,0.00022521,2]
[364083287,1748992244280,-1312.66060529,0.00022558,2]
[364083289,1748992244290,-979.92,0.000226,7]
[364083291,1748992244299,-207.4,0.00022658,2]
[364083293,1748992244310,-2003.92702957,0.00022693,7]
[364083295,1748992244320,-536.71,0.00022739,2]
[364083297,1748992244330,-501.55035792,0.00022739,2]
[364083299,1748992244339,-604.98,0.00022739,2]
[364083301,1748992244350,-589.25497633,0.00022739,2]
[364083303,1748992244371,-626.50183566,0.00022739,2]
[364083305,1748992244380,-2003.92702957,0.00022969,8]
[364083307,1748992244390,-240.460761,0.00023042,2]
[364083309,1748992244400,-151.0,0.000231,7]
[364083311,1748992244410,-160.0,0.00023178,3]
[364083313,1748992244420,-364.5107659,0.00023178,2]
[364083315,1748992244430,-364.5107659,0.00023178,2]
[364083317,1748992244439,-364.5107659,0.00023178,2]
[364083319,1748992244448,-364.5107659,0.00023178,2]
[364083321,1748992244459,-364.5107659,0.00023178,2]
[364083323,1748992244469,-364.5107659,0.00023178,2]
[364083325,1748992244478,-364.5107659,0.00023178,2]
[364083327,1748992244488,-364.5107659,0.00023178,2]
[364083329,1748992244498,-364.5107659,0.00023178,2]
[364083332,1748992244507,-156.305,0.00023179,2]
[364083333,1748992244517,-962.0,0.00023179,2]
[364083335,1748992244527,-2225.0,0.00023179,2]
[364083338,1748992244536,-709.0,0.00023179,2]
[364083339,1748992244546,-2003.92702957,0.00023245,8]
[364083351,1748992244645,-297.0203863,0.00023315,2]
[364083353,1748992244657,-153.0,0.00023315,2]
[364083355,1748992244666,-154.2001919,0.00023315,2]
[364083357,1748992244676,-153.234842,0.00023315,2]
[364083359,1748992244685,-158.5442955,0.00023315,2]
[364083361,1748992244695,-176.5641048,0.00023315,2]
[364083363,1748992244705,-176.5641048,0.00023315,2]
[364083365,1748992244715,-153.0,0.00023315,2]
[364083367,1748992244727,-153.0,0.00023315,2]
[364083369,1748992244737,-158.5442955,0.00023315,2]
[364083371,1748992244747,-572.6068135,0.00023315,2]
[364083373,1748992244757,-158.5442955,0.00023315,2]
[364083375,1748992244769,-176.5641048,0.00023315,2]
[364083377,1748992244779,-572.6068135,0.00023315,2]
[364083379,1748992244788,-153.0,0.00023315,2]
[364083381,1748992244801,-158.5442955,0.00023315,2]
[364083383,1748992244810,-176.5641048,0.00023315,2]
[364083385,1748992244820,-153.0,0.00023315,2]
[364083387,1748992244830,-158.5442955,0.00023315,2]
[364083389,1748992244839,-176.5641048,0.00023315,2]
[364083391,1748992244849,-176.5641048,0.00023315,2]
[364083393,1748992244858,-153.0,0.00023315,2]
[364083395,1748992244868,-153.0,0.00023315,2]
[364083397,1748992244878,-158.5442955,0.00023315,2]
[364083399,1748992244889,-572.6068135,0.00023315,2]
[364083401,1748992244898,-572.6068135,0.00023315,2]
[364083403,1748992244908,-176.5641048,0.00023315,2]
[364083405,1748992244919,-158.5442955,0.00023315,2]
[364083407,1748992244928,-158.5442955,0.00023315,2]
[364083409,1748992244939,-153.0,0.00023315,2]
[364083411,1748992244949,-153.0,0.00023315,2]
[364083413,1748992244958,-572.6068135,0.00023315,2]
[364083415,1748992244968,-300.6762773,0.00023378,2]
[364083417,1748992244979,-572.6068135,0.00023378,2]
[364083419,1748992244989,-572.6068135,0.00023378,2]
[364083421,1748992244999,-572.6068135,0.00023378,2]
[364083423,1748992245008,-503.1412676,0.00023378,2]
[364083425,1748992245017,-2003.92702957,0.00023521,9]
[364083427,1748992245027,-638.02326701,0.00023569,2]
[364083429,1748992245037,-151.0,0.000236,10]
[364083431,1748992245046,-1511.911984,0.00023664,3]
[364083433,1748992245056,-500.0,0.000237,5]
[364083435,1748992245065,-161889.19,0.000237,7]
[364083437,1748992245075,-2417.84,0.000237,7]
[364083439,1748992245085,-68797.82673063,0.000237,7]
[364083441,1748992245095,-151.0,0.000237,2]
[364083443,1748992245104,-151.0,0.000237,7]
[364083445,1748992245114,-800.0,0.00023734,2]
[364083447,1748992245123,-2003.92702957,0.00023797,9]
[364083449,1748992245133,-440.0,0.00023799,2]
[364083451,1748992245142,-440.0,0.00023799,2]
[364083453,1748992245152,-440.0,0.00023799,2]
[364083456,1748992245162,-545.34,0.00023799,2]
[364083457,1748992245172,-430.0,0.00023799,2]
[364083459,1748992245182,-1336.54,0.000238,2]
[364083462,1748992245191,-275.5,0.00023827,8]
[364083464,1748992245201,-800.0,0.00023866,2]
[364083466,1748992245211,-1297.779594,0.000239,2]
[364083468,1748992245220,-11919.21427203,0.00023905,2]
[364083470,1748992245230,-7270.83165608,0.00023905,2]
[364083472,1748992245239,-10000.0,0.00024,7]
[364083474,1748992245249,-194.71,0.00024,31]
[364083476,1748992245258,-194.71,0.00024,31]
[364083478,1748992245268,-194.71,0.00024,31]
[364083480,1748992245277,-194.71,0.00024,31]
[364083482,1748992245287,-194.71,0.00024,31]
[364083484,1748992245297,-194.71,0.00024,31]
[364083486,1748992245306,-194.71,0.00024,31]
[364083488,1748992245315,-194.71,0.00024,31]
[364083490,1748992245325,-194.71,0.00024,31]
[364083492,1748992245335,-194.71,0.00024,31]
[364083494,1748992245344,-194.71,0.00024,31]
[364083496,1748992245354,-194.71,0.00024,31]
[364083498,1748992245364,-194.71,0.00024,31]
[364083500,1748992245373,-194.71,0.00024,31]
[364083502,1748992245383,-194.71,0.00024,31]
[364083504,1748992245393,-194.71,0.00024,31]
[364083506,1748992245403,-158.13,0.00024,2]
[364083508,1748992245412,-168.21129388,0.00024,2]
[364083510,1748992245421,-229.42821335,0.00024,7]
[364083512,1748992245431,-2200.0,0.00024024,2]
[364083514,1748992245441,-215.0738,0.00024027,2]
[364083516,1748992245450,-2111.20273033,0.00024055,2]
[364083518,1748992245459,-15756.15042115,0.00024064,2]
[364083520,1748992245469,-2003.92702957,0.00024072,10]
[364083522,1748992245479,-440.0,0.00024073,2]
[364083524,1748992245488,-440.0,0.00024073,2]
[364083527,1748992245499,-440.0,0.00024073,2]
[364083529,1748992245509,-1974.054772,0.0002408,5]
[364083530,1748992245520,-200.0,0.0002409,9]
[364083533,1748992245531,-151.0,0.000241,7]
[364083535,1748992245541,-151.0,0.000241,8]
[364083537,1748992245550,-2000.0,0.000241,2]
[364083539,1748992245560,-2000.0,0.000241,2]
[364083541,1748992245571,-2000.0,0.000241,2]
[364083543,1748992245581,-2000.0,0.000241,2]
[364083545,1748992245592,-1000.0,0.000241,5]
[364083547,1748992245601,-250.0,0.000241,30]
[364083549,1748992245611,-446.46,0.00024109,2]
[364083551,1748992245620,-446.46,0.00024109,2]
[364083553,1748992245630,-446.46,0.00024109,2]
[364083555,1748992245639,-446.46,0.00024109,2]
[364083557,1748992245649,-446.46,0.00024109,2]
[364083559,1748992245659,-446.46,0.00024109,2]
[364083561,1748992245668,-446.46,0.00024109,2]
[364083563,1748992245677,-446.46,0.00024109,2]
[364083565,1748992245687,-446.46,0.00024109,2]
[364083567,1748992245696,-446.46,0.00024109,2]
[364083569,1748992245706,-446.46,0.00024109,2]
[364083571,1748992245715,-446.46,0.00024109,2]
[364083573,1748992245728,-446.46,0.00024109,2]
[364083575,1748992245738,-446.46,0.00024109,2]
[364083577,1748992245747,-446.46,0.00024109,2]
[364083579,1748992245758,-446.46,0.00024109,2]
[364083581,1748992245770,-446.46,0.00024109,2]
[364083583,1748992245780,-446.46,0.00024109,2]
[364083585,1748992245791,-446.46,0.00024109,2]
[364083587,1748992245802,-446.46,0.00024109,2]
[364083589,1748992245811,-446.46,0.00024109,2]
[364083591,1748992245821,-446.46,0.00024109,2]
[364083593,1748992245830,-446.46,0.00024109,2]
[364083595,1748992245840,-446.60769785,0.00024109,2]
[364083597,1748992245849,-834.32,0.00024127,10]
[364083599,1748992245858,-1591.0,0.00024127,10]
[364083601,1748992245868,-1325.83,0.00024127,10]
[364083603,1748992245878,-153.0,0.00024137,2]
[364083605,1748992245888,-153.0,0.00024137,2]
[364083607,1748992245897,-572.6068135,0.00024137,2]
[364083609,1748992245906,-153.0,0.00024137,2]
[364083611,1748992245916,-153.0,0.00024137,2]
[364083613,1748992245925,-572.6068135,0.00024137,2]
[364083615,1748992245935,-153.0,0.00024137,2]
[364083617,1748992245944,-572.6068135,0.00024137,2]
[364083619,1748992245954,-153.0,0.00024137,2]